fUST/lending_fUST_20250112
["ID","MTS","AMOUNT","RATE_DAILY","PERIOD"]
[348590359,1736650238156,-83281.55471705,0.0002,5]
[348590360,1736650238167,-4635.22497966,0.0002,5]
[348590364,1736650238341,-58994.34283134,0.0002,5]
[348590387,1736650240486,-68.86711587,0.0002,5]
[348590420,1736650301272,160.601589,0.00013973,2]
[348590425,1736651142151,-546.31258658,0.000189,2]
[348590426,1736651142172,-422.351,0.00019,2]
[348590427,1736651142194,-164.037723,0.00019178,2]
[348590428,1736651142214,-166.5218786,0.0001945,2]
[348590429,1736651142235,-379.04216098,0.000199,2]
[348590430,1736651142256,-358.1414053,0.000199,2]
[348590431,1736651142277,-251.367452,0.000199,2]
[348590432,1736651142299,-177.21746732,0.000199,2]
[348590433,1736651164216,160.906868,0.00013973,2]
[348590435,1736651233090,-44.18868138,0.000199,2]
[348590436,1736651233112,-332.8536391,0.000199,2]
[348590437,1736651233134,-775.56746196,0.00019941,2]
[348590438,1736651233155,-454.33234637,0.00019973,2]
[348590445,1736651350114,-458.46624482,0.000189,2]
[348590446,1736651350136,-403.15137784,0.00019,2]
[348590494,1736651438319,-18.32362216,0.00019,2]
[348590495,1736651438329,-583.87473046,0.00019667,2]
[348590496,1736651438339,-471.24813835,0.0001984,2]
[348590497,1736651438350,-331.66189084,0.000199,2]
[348590498,1736651438359,-500.60165686,0.00019973,2]
[348590499,1736651438369,-504.15298392,0.00019973,2]
[348590500,1736651438380,-465.05216735,0.00019973,2]
[348590501,1736651438389,-508.93411487,0.00019999,7]
[348590502,1736651438399,-300.0,0.00019999,2]
[348590503,1736651438409,-327.74148102,0.00019999,2]
[348590504,1736651438419,-183335.08534544,0.0002,5]
[348590505,1736651438430,-28632.04774244,0.0002,5]
[348590506,1736651438442,-1365.34059203,0.0002,5]
[348590513,1736651440678,-304.23979383,0.0002,5]
[348590514,1736651440943,-2874.35377761,0.0002,5]
[348590552,1736651443507,-1257.92706627,0.0002,5]
[348590554,1736651443746,-16971.15897987,0.0002,5]
[348590558,1736651446479,-2220.60642825,0.0002,5]
[348590559,1736651446491,-17210.02331188,0.0002,5]
[348590560,1736651446503,-12140.86259882,0.0002,5]
[348590562,1736652075199,161.177279,0.00013973,2]
[348590565,1736652330102,-347.92031054,0.000188,2]
[348590566,1736652330123,-568.4877965,0.000189,2]
[348590567,1736652330144,-178.0,0.00019752,2]
[348590568,1736652330165,-143.70692909,0.00019915,2]
[348590569,1736652351088,-421.584,0.00019,2]
[348590570,1736652351110,-281.76292045,0.00019915,2]
[348590571,1736652351131,-680.12721327,0.00019922,2]
[348590575,1736652428092,-290.20415445,0.00019898,2]
[348590576,1736652428114,-319.87278673,0.00019922,2]
[348590577,1736652428137,-585.89184964,0.00019964,2]
[348590578,1736652428158,-502.11681342,0.00019973,2]
[348590579,1736652428180,-500.0,0.00019973,2]
[348590580,1736652428201,-500.0,0.0001998,2]
[348590581,1736652428225,-179.3,0.00019984,2]
[348590582,1736652428250,-170.0,0.00019984,2]
[348590583,1736652428271,-170.0,0.00019984,2]
[348590584,1736652428295,-170.0,0.00019984,2]
[348590585,1736652428319,-150.43484917,0.00019995,2]
[348590586,1736652430111,-149.56515083,0.00019995,2]
[348590587,1736652430134,-228.14961515,0.00019995,2]
[348590589,1736652551094,-491.78097342,0.000189,2]
[348591330,1736653329973,161.177279,0.00013973,2]
[348591331,1736653548148,-154.94517274,0.000189,2]
[348591332,1736653548169,-422.51878014,0.000189,2]
[348591333,1736653548190,-2000.0,0.00019,2]
[348591334,1736653548339,-421.816,0.00019,2]
[348591335,1736653548361,-192.734316,0.00019178,2]
[348591336,1736653548382,-932.65453787,0.000195,2]
[348591337,1736653550090,-113.29826273,0.000195,2]
[348591338,1736653550111,-169.87557284,0.00019799,2]
[348591340,1736653627085,-150.603,0.00019396,2]
[348591341,1736653627107,-304.93602517,0.00019895,2]
[348591342,1736653627128,-501.9201894,0.00019973,2]
[348591343,1736653627150,-163.0,0.00019973,2]
[348591344,1736653627171,-2148.0589615,0.00019978,2]
[348591347,1736653745144,-632.04063187,0.000189,2]
[348591988,1736653838924,-19.96352556,0.000189,2]
[348591990,1736653838934,-465.31240692,0.0001979,2]
[348591993,1736653838943,-266.81902205,0.00019894,2]
[348591996,1736653838953,-1448.0,0.00019978,2]
[348591999,1736653838963,-300.0,0.00019978,2]
[348592002,1736653838972,-2075.0,0.00019979,2]
[348592005,1736653838981,-546.514,0.00019979,2]
[348592007,1736653838992,-2316.0,0.00019979,2]
[348592009,1736653839006,-811.72813916,0.00019992,2]
[348592011,1736653839016,-4.40838508,0.00019993,5]
[348592391,1736654467857,161.177279,0.00013973,2]
[348592392,1736654751139,-346.15177326,0.000188,2]
[348592393,1736654751169,-2284.80761381,0.00018874,2]
[348592394,1736654759076,-540.31050764,0.00018874,2]
[348592395,1736654853090,-1048.18830345,0.00018874,2]
[348592396,1736654853111,-464.52284434,0.000189,2]
[348592397,1736654853135,-260.38858575,0.00018993,2]
[348592407,1736654950104,-644.60817336,0.000189,2]
[348592408,1736654950128,-23.53430315,0.00018993,2]
[348592409,1736654950149,-438.784,0.00019,2]
[348592410,1736654950172,-192.734316,0.00019178,2]
[348592411,1736654950194,-300.0,0.00019395,2]
[348592412,1736654950216,-535.0,0.00019396,2]
[348592413,1736654950241,-2075.0,0.00019396,2]
[348592414,1736654950263,-2316.0,0.00019396,2]
[348592415,1736654950285,-420.707,0.00019396,2]
[348592416,1736654950314,-588.75075212,0.00019648,2]
[348592417,1736654969085,-178.17664328,0.00019648,2]
[348592920,1736655037649,-165.2798,0.00019178,2]
[348592921,1736655037659,-8.64006656,0.00019648,2]
[348592922,1736655037669,-280.84691439,0.0001989,2]
[348592923,1736655037679,-309.32556106,0.00019973,2]
[348592924,1736655037688,-171.30021105,0.0001998,2]
[348592925,1736655037699,-300.0,0.00019989,2]
[348592926,1736655037709,-674.37458819,0.00019989,3]
[348592927,1736655037753,-530.78541181,0.00019989,3]
[348592928,1736655037763,-500.0,0.00019989,3]
[348592929,1736655037893,-222.24158297,0.0001999,5]
[348592930,1736655037903,-260.3067139,0.0001999,2]
[348592931,1736655037913,-500.0,0.0001999,2]
[348592932,1736655037923,-237.19004424,0.0001999,2]
[348592933,1736655037933,-552.86237664,0.0001999,2]
[348592934,1736655037942,-523.19626402,0.0001999,2]
[348592935,1736655037951,-500.0,0.0001999,3]
[348592936,1736655037961,-500.0,0.0001999,2]
[348592937,1736655037970,-199.28922572,0.0001999,2]
[348592938,1736655037980,-500.0,0.0001999,3]
[348592939,1736655037991,-9987.16,0.0001999,2]
[348592940,1736655038000,-500.0,0.0001999,3]
[348592941,1736655038010,-602.35,0.0001999,3]
[348592942,1736655038020,-4673.77,0.0001999,3]
[348592943,1736655038030,-500.0,0.0001999,3]
[348592944,1736655038039,-500.0,0.0001999,3]
[348592945,1736655038049,-500.0,0.0001999,3]
[348592946,1736655038058,-502.33724982,0.0001999,3]
[348592947,1736655038067,-2203.6,0.0001999,3]
[348592948,1736655038077,-506.33560681,0.0001999,3]
[348592949,1736655038087,-1418.89,0.0001999,3]
[348592950,1736655038098,-1132.97,0.0001999,3]
[348592951,1736655038108,-500.0,0.0001999,3]
[348592952,1736655038119,-500.0,0.0001999,3]
[348592953,1736655038129,-500.0,0.0001999,3]
[348592954,1736655038139,-2701.23,0.0001999,3]
[348592955,1736655038148,-2380.71,0.0001999,3]
[348592956,1736655038157,-765.29,0.0001999,3]
[348592957,1736655038166,-1414.81,0.0001999,3]
[348592958,1736655038175,-2580.54,0.0001999,3]
[348592959,1736655038186,-500.0,0.0001999,3]
[348592960,1736655038196,-463.68257273,0.00019991,3]
[348592961,1736655038206,-500.94234279,0.00019991,3]
[348592962,1736655038216,-502.8181918,0.00019991,3]
[348592963,1736655038225,-502.23518981,0.00019991,3]
[348592964,1736655038235,-500.0,0.00019991,3]
[348592965,1736655038246,-500.0,0.00019991,3]
[348592966,1736655038256,-501.79698398,0.00019991,3]
[348592967,1736655038267,-506.29928322,0.00019991,3]
[348592968,1736655038277,-573.9728239,0.00019991,3]
[348592969,1736655038287,-500.0,0.00019991,3]
[348592970,1736655038298,-500.0,0.00019991,3]
[348592971,1736655038308,-500.0,0.00019991,3]
[348592972,1736655038317,-501.67865872,0.00019991,3]
[348592973,1736655038328,-501.3759484,0.00019991,3]
[348592974,1736655038338,-220.43344594,0.00019991,3]
[348592975,1736655038347,-502.15598035,0.00019991,3]
[348592976,1736655038356,-170.57388267,0.00019991,3]
[348592977,1736655038366,-500.0,0.00019991,3]
[348592978,1736655038375,-500.0,0.00019991,3]
[348592979,1736655038384,-159.55908585,0.00019991,3]
[348592980,1736655038398,-458.65073728,0.00019991,3]
[348592981,1736655038407,-501.51110382,0.00019991,3]
[348592982,1736655038416,-500.0,0.00019991,3]
[348592983,1736655038426,-502.16535194,0.00019991,3]
[348592984,1736655038435,-500.0,0.00019991,3]
[348592985,1736655038444,-521.87562508,0.00019991,3]
[348592986,1736655038455,-501.51642615,0.00019991,3]
[348592987,1736655038464,-502.26883412,0.00019991,3]
[348592988,1736655038476,-501.39611503,0.00019991,3]
[348592989,1736655038487,-500.0,0.00019991,3]
[348592990,1736655038497,-500.0,0.00019991,3]
[348592991,1736655038509,-504.52582294,0.00019991,3]
[348592992,1736655038520,-501.48518988,0.00019991,3]
[348592993,1736655038531,-500.0,0.00019991,3]
[348592994,1736655038541,-502.76936373,0.00019991,3]
[348592995,1736655038550,-500.0,0.00019991,3]
[348592996,1736655038559,-503.47681147,0.00019991,3]
[348592997,1736655038574,-500.0,0.00019991,3]
[348592998,1736655038584,-500.0,0.00019991,3]
[348592999,1736655038593,-500.0,0.00019991,3]
[348593000,1736655038603,-500.0,0.00019991,3]
[348593001,1736655038613,-504.36108163,0.00019991,3]
[348593002,1736655038622,-501.31195883,0.00019991,3]
[348593003,1736655038631,-500.0,0.00019991,3]
[348593004,1736655038640,-500.0,0.00019991,3]
[348593005,1736655038650,-610.65095352,0.00019991,3]
[348593006,1736655038659,-500.0,0.00019991,3]
[348593007,1736655038668,-502.33928613,0.00019991,3]
[348593008,1736655038677,-500.0,0.00019991,3]
[348593009,1736655038686,-500.78436218,0.00019991,3]
[348593010,1736655038696,-500.0,0.00019991,3]
[348593011,1736655038705,-503.9917684,0.00019991,3]
[348593012,1736655038714,-602.29972776,0.00019991,3]
[348593013,1736655038723,-500.0,0.00019991,3]
[348593014,1736655038733,-500.0,0.00019991,3]
[348593015,1736655038743,-200.0,0.00019991,3]
[348593016,1736655038753,-494.17471375,0.00019991,3]
[348593017,1736655038762,-501.7734991,0.00019991,3]
[348593018,1736655038772,-500.0,0.00019991,3]
[348593019,1736655038781,-500.0,0.00019991,3]
[348593020,1736655038791,-500.0,0.00019991,3]
[348593021,1736655038800,-549.06,0.00019991,3]
[348593022,1736655038809,-219.64843666,0.00019991,3]
[348593023,1736655038819,-500.0,0.00019991,3]
[348593024,1736655038829,-501.48374926,0.00019991,3]
[348593025,1736655038838,-259.18538942,0.00019991,3]
[348593026,1736655038847,-501.86295781,0.00019991,3]
[348593027,1736655038856,-500.0,0.00019991,3]
[348593028,1736655038866,-500.0,0.00019991,3]
[348593029,1736655038875,-344.52792605,0.00019991,3]
[348593030,1736655038884,-500.0,0.00019991,3]
[348593031,1736655038892,-416.33088253,0.00019991,3]
[348593032,1736655038902,-1008.79,0.00019991,3]
[348593033,1736655038911,-504.07793971,0.00019991,3]
[348593034,1736655038919,-500.0,0.00019991,3]
[348593035,1736655038928,-500.0,0.00019991,3]
[348593036,1736655038937,-503.19015441,0.00019991,3]
[348593037,1736655038946,-500.0,0.00019991,3]
[348593038,1736655038956,-502.6435146,0.00019991,3]
[348593039,1736655038965,-500.0,0.00019991,3]
[348593040,1736655038975,-504.25000595,0.00019991,3]
[348593041,1736655038985,-502.83306004,0.00019991,3]
[348593042,1736655038995,-500.0,0.00019991,3]
[348593043,1736655039004,-500.0,0.00019991,3]
[348593044,1736655039015,-500.0,0.00019991,3]
[348593045,1736655039024,-500.0,0.00019991,3]
[348593046,1736655039033,-500.0,0.00019991,3]
[348593047,1736655039043,-500.0,0.00019991,3]
[348593048,1736655039052,-500.0,0.00019991,3]
[348593049,1736655039062,-506.15831472,0.00019991,3]
[348593050,1736655039072,-952.98,0.00019991,3]
[348593051,1736655039082,-500.0,0.00019991,3]
[348593052,1736655039092,-500.0,0.00019991,3]
[348593053,1736655039101,-500.0,0.00019991,3]
[348593054,1736655039110,-500.0,0.00019991,3]
[348593055,1736655039120,-504.03108444,0.00019991,3]
[348593056,1736655039129,-502.75384925,0.00019991,3]
[348593057,1736655039139,-500.0,0.00019991,3]
[348593058,1736655039149,-372.96943714,0.00019991,3]
[348593059,1736655039158,-501.76440931,0.00019991,3]
[348593060,1736655039169,-502.7575484,0.00019991,3]
[348593061,1736655039179,-502.42053856,0.00019991,3]
[348593062,1736655039191,-501.93414703,0.00019991,3]
[348593063,1736655039201,-504.51001318,0.00019991,3]
[348593064,1736655039210,-500.9289704,0.00019991,3]
[348593065,1736655039223,-616.30647892,0.00019991,3]
[348593066,1736655039232,-501.71011158,0.00019991,3]
[348593067,1736655039243,-500.0,0.00019991,3]
[348593068,1736655039254,-500.0,0.00019991,3]
[348593069,1736655039264,-501.35670606,0.00019991,3]
[348593070,1736655039273,-502.81084963,0.00019991,3]
[348593071,1736655039284,-500.0,0.00019991,3]
[348593072,1736655039294,-500.0,0.00019991,3]
[348593073,1736655039305,-500.0,0.00019991,3]
[348593074,1736655039315,-488.78151445,0.00019991,3]
[348593075,1736655039325,-453.69950649,0.00019991,3]
[348593076,1736655039334,-500.0,0.00019991,3]
[348593077,1736655039344,-500.0,0.00019991,3]
[348593078,1736655039353,-500.0,0.00019991,3]
[348593079,1736655039364,-500.0,0.00019991,3]
[348593080,1736655039373,-500.0,0.00019991,3]
[348593081,1736655039383,-500.0,0.00019991,3]
[348593082,1736655039394,-500.0,0.00019991,3]
[348593083,1736655039404,-500.0,0.00019991,3]
[348593085,1736655039414,-500.0,0.00019991,3]
[348593086,1736655039424,-500.0,0.00019991,3]
[348593087,1736655039434,-500.0,0.00019991,3]
[348593088,1736655039444,-500.0,0.00019991,3]
[348593089,1736655039455,-501.80749423,0.00019991,3]
[348593090,1736655039466,-500.0,0.00019991,3]
[348593092,1736655039475,-500.0,0.00019991,3]
[348593094,1736655039485,-500.0,0.00019991,3]
[348593096,1736655039495,-500.0,0.00019991,3]
[348593098,1736655039505,-500.0,0.00019991,3]
[348593099,1736655039514,-502.68234002,0.00019991,3]
[348593101,1736655039524,-500.0,0.00019991,3]
[348593103,1736655039534,-500.0,0.00019991,3]
[348593105,1736655039543,-500.0,0.00019991,3]
[348593107,1736655039553,-501.16633976,0.00019991,3]
[348593109,1736655039562,-500.0,0.00019991,3]
[348593111,1736655039576,-453.67184264,0.00019991,3]
[348593112,1736655039585,-500.0,0.00019991,3]
[348593113,1736655039594,-500.80481837,0.00019991,3]
[348593114,1736655039603,-500.0,0.00019991,3]
[348593115,1736655039614,-341.1550462,0.00019991,3]
[348593116,1736655039623,-500.0,0.00019991,3]
[348593118,1736655039632,-500.0,0.00019991,3]
[348593120,1736655039642,-500.0,0.00019991,3]
[348593122,1736655039652,-515.30187668,0.00019991,3]
[348593124,1736655039662,-500.0,0.00019991,3]
[348593126,1736655039671,-500.0,0.00019991,3]
[348593128,1736655039680,-500.0,0.00019991,3]
[348593129,1736655039689,-500.0,0.00019991,3]
[348593130,1736655039698,-500.0,0.00019991,3]
[348593132,1736655039707,-500.0,0.00019991,3]
[348593134,1736655039716,-500.0,0.00019991,3]
[348593136,1736655039726,-500.0,0.00019991,3]
[348593137,1736655039735,-500.0,0.00019991,3]
[348593138,1736655039744,-500.0,0.00019991,3]
[348593141,1736655039754,-500.0,0.00019991,3]
[348593143,1736655039763,-500.0,0.00019991,3]
[348593144,1736655039773,-500.0,0.00019991,3]
[348593146,1736655039782,-996.36,0.00019991,3]
[348593148,1736655039792,-493.3106669,0.00019991,3]
[348593151,1736655039802,-500.0,0.00019991,3]
[348593152,1736655039811,-229.97877788,0.00019991,3]
[348593154,1736655039820,-500.0,0.00019991,3]
[348593156,1736655039830,-310.8451812,0.00019991,3]
[348593158,1736655039839,-500.0,0.00019991,3]
[348593160,1736655039848,-500.0,0.00019991,3]
[348593161,1736655039859,-500.0,0.00019991,3]
[348593163,1736655039869,-503.39686503,0.00019991,3]
[348593165,1736655039878,-500.0,0.00019991,3]
[348593167,1736655039888,-500.0,0.00019991,3]
[348593169,1736655039897,-500.0,0.00019991,3]
[348593171,1736655039907,-500.0,0.00019991,3]
[348593173,1736655039916,-500.0,0.00019991,3]
[348593175,1736655039926,-500.0,0.00019991,3]
[348593177,1736655039935,-500.0,0.00019991,3]
[348593189,1736655040032,-500.0,0.00019991,3]
[348593191,1736655040042,-500.0,0.00019991,3]
[348593193,1736655040052,-500.0,0.00019991,3]
[348593195,1736655040061,-500.0,0.00019991,3]
[348593197,1736655040074,-500.0,0.00019991,3]
[348593199,1736655040084,-500.0,0.00019991,3]
[348593201,1736655040093,-500.0,0.00019991,3]
[348593203,1736655040104,-500.0,0.00019991,3]
[348593205,1736655040113,-500.0,0.00019991,3]
[348593207,1736655040123,-500.0,0.00019991,3]
[348593209,1736655040132,-500.0,0.00019991,3]
[348593211,1736655040142,-502.23630353,0.00019991,3]
[348593213,1736655040153,-500.0,0.00019991,3]
[348593215,1736655040162,-500.0,0.00019991,3]
[348593217,1736655040171,-500.0,0.00019991,3]
[348593219,1736655040180,-1384.32,0.00019991,3]
[348593221,1736655040190,-500.0,0.00019991,3]
[348593223,1736655040199,-500.0,0.00019991,3]
[348593225,1736655040209,-500.0,0.00019991,3]
[348593226,1736655040219,-503.40039191,0.00019991,3]
[348593228,1736655040228,-277.65619104,0.00019991,3]
[348593230,1736655040237,-1460.0,0.00019991,3]
[348593232,1736655040246,-151.0,0.00019991,2]
[348593234,1736655040256,-500.0,0.00019991,3]
[348593236,1736655040265,-1933.45,0.00019991,3]
[348593238,1736655040275,-151.0,0.00019991,2]
[348593240,1736655040284,-151.0,0.00019991,2]
[348593242,1736655040293,-605.22,0.00019991,3]
[348593244,1736655040302,-180.20597119,0.00019991,3]
[348593246,1736655040311,-500.0,0.00019991,3]
[348593248,1736655040320,-500.0,0.00019991,3]
[348593250,1736655040329,-501.24116586,0.00019991,3]
[348593252,1736655040338,-500.0,0.00019991,3]
[348593254,1736655040347,-500.0,0.00019991,3]
[348593256,1736655040356,-500.0,0.00019991,3]
[348593258,1736655040365,-1433.5,0.00019991,3]
[348593260,1736655040374,-577.21245905,0.00019991,3]
[348593262,1736655040383,-500.0,0.00019991,3]
[348593264,1736655040393,-500.0,0.00019991,3]
[348593266,1736655040402,-35818.09,0.00019991,3]
[348593268,1736655040411,-500.0,0.00019991,3]
[348593269,1736655040421,-500.0,0.00019991,3]
[348593270,1736655040430,-500.0,0.00019991,3]
[348593271,1736655040439,-500.0,0.00019991,3]
[348593272,1736655040448,-500.0,0.00019991,3]
[348593273,1736655040457,-501.26381919,0.00019991,3]
[348593274,1736655040466,-1392.73,0.00019991,3]
[348593275,1736655040476,-500.0,0.00019991,3]
[348593276,1736655040485,-500.0,0.00019991,3]
[348593277,1736655040495,-500.0,0.00019991,3]
[348593278,1736655040505,-500.0,0.00019991,3]
[348593279,1736655040514,-500.0,0.00019991,3]
[348593280,1736655040523,-500.0,0.00019991,3]
[348593281,1736655040532,-411.82461043,0.00019991,3]
[348593282,1736655040542,-500.0,0.00019991,3]
[348593283,1736655040551,-1546.78,0.00019991,3]
[348593284,1736655040560,-543.65809583,0.00019991,3]
[348593285,1736655040570,-865.07,0.00019991,3]
[348593286,1736655040579,-500.0,0.00019991,3]
[348593287,1736655040589,-500.0,0.00019991,3]
[348593288,1736655040598,-500.0,0.00019991,3]
[348593289,1736655040607,-500.0,0.00019991,3]
[348593290,1736655040616,-500.0,0.00019991,3]
[348593291,1736655040626,-500.99894832,0.00019991,3]
[348593292,1736655040635,-500.0,0.00019991,3]
[348593293,1736655040644,-500.0,0.00019991,3]
[348593294,1736655040653,-500.0,0.00019991,3]
[348593295,1736655040662,-500.77735171,0.00019991,3]
[348593296,1736655040671,-500.92720785,0.00019991,3]
[348593297,1736655040680,-500.0,0.00019991,3]
[348593298,1736655040690,-500.0,0.00019991,3]
[348593299,1736655040699,-500.0,0.00019991,3]
[348593300,1736655040708,-500.0,0.00019991,3]
[348593301,1736655040717,-500.0,0.00019991,3]
[348593302,1736655040726,-500.0,0.00019991,3]
[348593303,1736655040736,-500.0,0.00019991,3]
[348593304,1736655040745,-500.0,0.00019991,3]
[348593305,1736655040756,-547.79195475,0.00019991,3]
[348593306,1736655040767,-501.95280917,0.00019991,3]
[348593307,1736655040776,-924.61,0.00019991,3]
[348593308,1736655040787,-500.0,0.00019991,3]
[348593309,1736655040797,-500.0,0.00019991,3]
[348593310,1736655040807,-517.26,0.00019991,3]
[348593311,1736655040817,-500.0,0.00019991,3]
[348593312,1736655040827,-501.5481386,0.00019991,3]
[348593313,1736655040838,-500.0,0.00019991,3]
[348593314,1736655040847,-500.0,0.00019991,3]
[348593315,1736655040856,-500.0,0.00019991,3]
[348593316,1736655040865,-1165.65,0.00019991,3]
[348593317,1736655040875,-151.0,0.00019991,2]
[348593318,1736655040883,-151.0,0.00019991,2]
[348593319,1736655040893,-500.0,0.00019991,3]
[348593320,1736655040902,-151.0,0.00019991,2]
[348593321,1736655040912,-151.0,0.00019991,2]
[348593322,1736655040921,-151.0,0.00019991,2]
[348593323,1736655040930,-151.0,0.00019991,2]
[348593324,1736655040939,-500.0,0.00019991,3]
[348593325,1736655040949,-500.0,0.00019991,3]
[348593326,1736655040958,-500.0,0.00019991,3]
[348593327,1736655040967,-151.0,0.00019991,2]
[348593328,1736655040977,-500.0,0.00019991,3]
[348593329,1736655040986,-151.0,0.00019991,2]
[348593330,1736655040996,-500.0,0.00019991,3]
[348593331,1736655041005,-151.0,0.00019991,2]
[348593332,1736655041015,-151.0,0.00019991,2]
[348593333,1736655041024,-151.0,0.00019991,2]
[348593334,1736655041033,-337.2500047,0.00019991,3]
[348593335,1736655041042,-1319.29,0.00019991,3]
[348593336,1736655041051,-151.0,0.00019991,2]
[348593337,1736655041060,-500.0,0.00019991,3]
[348593338,1736655041070,-500.0,0.00019991,3]
[348593339,1736655041079,-500.0,0.00019991,3]
[348593340,1736655041090,-500.0,0.00019991,3]
[348593341,1736655041099,-502.673378,0.00019991,3]
[348593342,1736655041108,-500.0,0.00019991,3]
[348593343,1736655041117,-500.0,0.00019991,3]
[348593344,1736655041126,-500.0,0.00019991,3]
[348593345,1736655041135,-501.07394949,0.00019991,3]
[348593346,1736655041144,-505.14257743,0.00019991,3]
[348593347,1736655041153,-500.0,0.00019991,3]
[348593348,1736655041162,-500.0,0.00019991,3]
[348593349,1736655041171,-500.0,0.00019991,3]
[348593350,1736655041180,-500.0,0.00019991,3]
[348593351,1736655041190,-731.69,0.00019991,3]
[348593352,1736655041199,-500.0,0.00019991,3]
[348593353,1736655041209,-501.26829801,0.00019991,3]
[348593354,1736655041218,-500.0,0.00019991,3]
[348593355,1736655041227,-500.0,0.00019991,3]
[348593356,1736655041236,-500.0,0.00019991,3]
[348593357,1736655041245,-151.0,0.00019991,2]
[348593358,1736655041254,-500.0,0.00019991,3]
[348593359,1736655041262,-500.0,0.00019991,3]
[348593360,1736655041271,-500.0,0.00019991,3]
[348593361,1736655041280,-151.0,0.00019991,2]
[348593362,1736655041289,-151.0,0.00019991,2]
[348593363,1736655041298,-500.0,0.00019991,3]
[348593364,1736655041307,-151.0,0.00019991,2]
[348593365,1736655041316,-151.0,0.00019991,2]
[348593366,1736655041325,-151.0,0.00019991,2]
[348593367,1736655041333,-291.906426,0.00019991,2]
[348593368,1736655041342,-500.0,0.00019991,3]
[348593369,1736655041351,-500.0,0.00019991,3]
[348593370,1736655041361,-500.0,0.00019991,3]
[348593371,1736655041370,-641.70297051,0.00019991,3]
[348593372,1736655041379,-500.0,0.00019991,3]
[348593373,1736655041388,-468.57111186,0.00019991,3]
[348593374,1736655041399,-500.0,0.00019991,3]
[348593375,1736655041408,-500.0,0.00019991,3]
[348593376,1736655041417,-500.0,0.00019991,3]
[348593377,1736655041426,-500.0,0.00019991,3]
[348593378,1736655041435,-500.0,0.00019991,3]
[348593379,1736655041444,-500.0,0.00019991,3]
[348593380,1736655041453,-151.677373,0.00019991,2]
[348593381,1736655041463,-500.0,0.00019991,3]
[348593382,1736655041472,-500.0,0.00019991,3]
[348593383,1736655041483,-500.0,0.00019991,3]
[348593384,1736655041495,-500.0,0.00019991,3]
[348593385,1736655041504,-500.0,0.00019991,3]
[348593386,1736655041515,-500.0,0.00019991,3]
[348593387,1736655041527,-432.11299078,0.00019991,3]
[348593388,1736655041537,-500.0,0.00019991,3]
[348593389,1736655041548,-502.41852485,0.00019991,3]
[348593390,1736655041558,-500.0,0.00019991,3]
[348593391,1736655041572,-1628.48,0.00019991,3]
[348593392,1736655041581,-299.78273673,0.00019991,3]
[348593393,1736655041590,-500.0,0.00019991,3]
[348593394,1736655041600,-500.95924196,0.00019991,3]
[348593395,1736655041609,-500.0,0.00019991,3]
[348593396,1736655041620,-500.0,0.00019991,3]
[348593397,1736655041630,-500.0,0.00019991,3]
[348593398,1736655041639,-500.0,0.00019991,3]
[348593399,1736655041649,-500.0,0.00019991,3]
[348593400,1736655041659,-501.84665724,0.00019991,3]
[348593401,1736655041668,-500.0,0.00019991,3]
[348593402,1736655041677,-500.0,0.00019991,3]
[348593403,1736655041687,-624.73190746,0.00019991,3]